[Event "GCT Superbet Romania 2022"]
[Site "Bucharest"]
[Date "2022.05.08"]
[Round "4.5"]
[White "Dominguez Perez, Leinier"]
[Black "Aronian, Levon"]
[Result "0-1"]
[ECO "C24"]
[WhiteElo "2753"]
[BlackElo "2765"]
[Annotator "TA"]
[PlyCount "128"]
[EventDate "2022.05.05"]
[EventType "tourn"]
[EventCountry "ROU"]
[SourceTitle "playchess.com"]
[Source "ChessBase"]
[SourceQuality "1"]
[TimeControl "40/5400+30:1800+30"]

{[%evp 13,128,25,23,0,2,4,7,3,25,18,29,18,21,12,16,-33,-44,-43,-31,-43,0,0,0,0,0,0,0,0,0,0,0,0,0,0,0,0,0,0,0,-69,-85,-127,-136,-122,-122,-124,-123,-122,-109,-121,-114,-133,-10,-92,-92,-94,-93,-94,-85,-89,-87,-92,-65,-84,-61,-85,-32,-93,-44,-39,-32,-58,-59,-72,-53,-210,-213,-212,-212,-227,-234,-232,-210,-218,-216,-312,-285,-295,-287,-848,-874,-851,-845,-779,-701,-841,-826,-799,-720,-1508,-1514,-1861,-1825,-1700,-1661,-2225,-2034,-1212,-392,-1625,-1840,-29976,-29977,-29982,-29983,-29983,-29982]} 1. e4 {[%emt 0:00:03]} e5 {[%emt 0:00:13]} 2. Nf3 {[%emt 0:00:07]} Nc6 {[%emt 0:00:04]} 3. Bc4 {[%emt 0:00:10]} Bc5 {[%emt 0:00:06]} 4. O-O {[%emt 0:00:19]} Nf6 {[%emt 0:00:03]} 5. d3 {[%emt 0:00:07]} O-O {[%emt 0:00:05]} 6. h3 {[%emt 0:00:05]} d5 {[%emt 0:00:03]} 7. exd5 {[%emt 0:00:08]} Nxd5 {[%emt 0:00:03]} 8. Nbd2 {[%emt 0:00:14] [#] C24: Bishop's Opening: 2...Nf6.} a5 $146 {[%emt 0:00:03]} ({Predecessor:} 8... Be6 9. Ne4 Bb6 10. a4 f6 11. b4 a6 12. a5 Ba7 13. Bd2 Kh8 14. Re1 Nce7 15. Nc5 Bxc5 16. bxc5 {1-0 (48) Nepomniachtchi,I (2773)-Abdusattorov,N (2651) chess24.com INT 2022}) 9. Ne4 {[%emt 0:01:48]} Bb6 {[%emt 0:00:13]} 10. c3 {[%emt 0:00:09] The position is equal.} f6 {[%emt 0:00:54]} 11. d4 {[%emt 0:07:31]} exd4 {[%emt 0:01:31]} 12. Re1 {[%emt 0:02:13]} Kh8 {[%emt 0:03:02]} 13. cxd4 {[%emt 0:00:14]} Bf5 {[%emt 0:08:43][%cal Bc8f5,Bf5g6,Bg6f7][%mdl 32]} 14. Ng3 {[%emt 0:52:50]} (14. a3 $11) 14... Bg6 $15 {[%emt 0:01:29]} 15. Nh4 {[%emt 0:02:34]} Bf7 {[%emt 0:01:37]} ({Resist} 15... Bxd4 16. Nxg6+ hxg6 17. Qg4 $18) 16. Ngf5 {[%emt 0:04:29]} Re8 {[%emt 0:06:07]} 17. Rxe8+ {[%emt 0:10:34]} Qxe8 {[%emt 0:00:20]} 18. Qg4 $1 {[%emt 0:00:16][%csl Gf5][%cal Rg4g7]} Qf8 {[%emt 0:05:24]} 19. Bd2 {[%emt 0:00:40]} Rd8 {[%emt 0:03:07]} 20. Re1 {[%emt 0:01:45]} Nde7 {[%emt 0:03:02]} 21. Bxf7 {[%emt 0:05:03]} Qxf7 {[%emt 0:00:12]} 22. Bc3 {[%emt 0:00:55]} Nxf5 {[%emt 0:16:12]} 23. Nxf5 {[%emt 0:00:12][%cal Oe1e6]} g6 {[%emt 0:00:10]} 24. Nh6 {[%emt 0:05:25]} Qf8 $36 {[%emt 0:02:23][%cal Rb6d4][%mdl 2048] Black is pushing.} (24... Qxa2 $2 25. d5 Nd4 26. Bxd4 $18) 25. d5 {[%emt 0:00:55]} Nb4 {[%emt 0:00:09]} (25... Rxd5 $2 26. Re8 $3 {[%mdl 512]} Kg7 27. Rxf8 $18) 26. Qe6 {[%emt 0:03:54]} Kg7 {[%emt 0:00:20]} 27. Bxb4 {[%emt 0:00:44]} axb4 {[%emt 0:00:41]} 28. Ng4 {[%emt 0:00:01]} Qf7 {[%emt 0:04:14]} 29. Qe4 {[%emt 0:01:03]} Rxd5 {[%emt 0:00:17] Strongly threatening ...f5.} 30. Qf4 {[%emt 0:00:28]} Bc5 {[%emt 0:03:01]} 31. Qh6+ {[%emt 0:00:18]} Kh8 {[%emt 0:00:06]} 32. Qf4 {[%emt 0:00:41]} Rd8 {[%emt 0:05:39]} (32... Bd4 $17 33. Ne3 Rd7) 33. b3 {[%emt 0:00:33]} (33. Nh6 $1 $11 {keeps the balance.} Qg7 34. Qc4 Bxf2+ 35. Kf1 Qxh6 36. Qxc7) 33... Bd4 $17 {[%emt 0:01:52]} 34. Ne5 {[%emt 0:00:31]} Qg7 {[%emt 0:01:24]} 35. Nf3 {[%emt 0:00:28]} Bc5 {[%emt 0:04:21]} 36. g3 {[%emt 0:00:04]} b6 {[%emt 0:04:00]} 37. Re6 {[%emt 0:00:20]} Bd6 {[%emt 0:05:30]} 38. Qd4 {[%emt 0:00:03]} Rf8 {[%emt 0:00:34]} 39. h4 {[%emt 0:00:46]} h5 {[%emt 0:01:57]} (39... Bc5 $17 40. Qe4 Qf7) 40. Kg2 {[%emt 0:00:00]} ({White should play} 40. Qd5 $15) 40... Kh7 {[%emt 0:00:00]} (40... Bc5 $17 41. Qf4 Kh7) 41. Qd5 $15 {[%emt 0:07:01]} Qg8 {[%emt 0:05:32]} 42. Qe4 {[%emt 0:04:36]} Qf7 {[%emt 0:01:39]} 43. Nd4 {[%emt 0:05:29]} Bc5 {[%emt 0:00:30]} 44. f4 $2 {[%emt 0:11:02] [#] This move loses the game for White.} ({White should try} 44. Ne2 $1 $15) 44... Rd8 $1 $19 {[%emt 0:11:48]} (44... Bxd4 45. Re7 c5 46. g4 $16 (46. Rxf7+ Rxf7 47. f5 gxf5 $14)) 45. Nf3 {[%emt 0:00:01]} Kg7 {[%emt 0:01:33][%cal Bh7g7,Bg7g6,Bg6f6][%mdl 32]} 46. f5 {[%emt 0:00:06] [#]} gxf5 {[%emt 0:00:30]} 47. Qxf5 {[%emt 0:00:06]} Qg6 {[%emt 0:00:18] Against g4} 48. Qxg6+ {[%emt 0:03:50]} Kxg6 {[%emt 0:00:36][%mdl 4096] Endgame KRB-KRN} 49. Re2 {[%emt 0:00:03]} (49. Re4 $142) 49... Rd3 {[%emt 0:00:35]} 50. Ne1 {[%emt 0:00:41]} Rc3 {[%emt 0:01:09]} 51. Rc2 $2 {[%emt 0:00:05]} (51. Rd2) 51... Rxc2+ {[%emt 0:03:06]} 52. Nxc2 {[%emt 0:00:01] KB-KN} f5 {[%emt 0:00:09]} 53. Kf3 {[%emt 0:03:10]} Kf6 {[%emt 0:00:06]} 54. Ne1 {[%emt 0:00:10]} b5 {[%emt 0:00:32]} 55. Nd3 {[%emt 0:00:40]} Bd6 {[%emt 0:00:05]} 56. Nc1 {[%emt 0:00:18]} Ke5 {[%emt 0:00:46]} 57. Ne2 {[%emt 0:00:07]} Kd5 {[%emt 0:00:04]} 58. Ke3 {[%emt 0:00:42]} c5 {[%emt 0:01:30][%cal Bc7c5,Bc5c4,Bc4c3,Bc3c2][%mdl 32]} 59. Kf3 {[%emt 0:00:04]} c4 {[%emt 0:00:47]} 60. Ke3 {[%emt 0:00:05]} Bc5+ $2 {[%emt 0:00:28]} (60... Bc7 61. Kf3 Bd6) 61. Kf4 $2 {[%emt 0:00:15]} (61. Kf3 Bd6 62. Ke3) 61... c3 {[%emt 0:01:16] ...c2 is the strong threat.} 62. Kxf5 {[%emt 0:01:04]} Be3 {[%emt 0:00:29] Black mates.} 63. a3 {[%emt 0:01:17]} Bd2 {[%emt 0:00:06]} 64. axb4 {[%emt 0:00:24]} c2 {[%emt 0:00:03] Weighted Error Value: White=0.69/Black=0.13 (very precise)} 0-1

[Event "GCT Superbet Romania 2022"]
[Site "Bucharest"]
[Date "2022.05.09"]
[Round "5.1"]
[White "Aronian, Levon"]
[Black "So, Wesley"]
[Result "1/2-1/2"]
[ECO "A30"]
[WhiteElo "2765"]
[BlackElo "2766"]
[Annotator "TA"]
[PlyCount "78"]
[EventDate "2022.05.05"]
[EventType "tourn"]
[EventCountry "ROU"]
[SourceTitle "playchess.com"]
[Source "ChessBase"]
[SourceQuality "1"]
[TimeControl "40/5400+30:1800+30"]

{[%evp 20,78,0,0,9,6,10,4,8,7,15,16,16,15,22,20,16,25,23,9,10,0,8,5,6,7,4,0,5,0,17,15,11,-17,-16,-45,0,0,0,0,0,0,0,0,0,0,0,0,0,0,0,0,0,0,0,0,0,0,0,0,0]} 1. c4 {[%emt 0:01:08]} c5 {[%emt 0:01:26]} 2. g3 {[%emt 0:00:05]} Nc6 {[%emt 0:01:46]} 3. Bg2 {[%emt 0:00:06]} Nf6 {[%emt 0:00:04]} 4. Nf3 {[%emt 0:04:10]} d5 {[%emt 0:00:26]} 5. cxd5 {[%emt 0:00:05]} Nxd5 {[%emt 0:00:03]} 6. d4 {[%emt 0:00:18]} cxd4 {[%emt 0:04:39]} 7. Nxd4 {[%emt 0:00:08]} Ndb4 {[%emt 0:00:04]} 8. Nxc6 {[%emt 0:00:11]} Qxd1+ {[%emt 0:00:06]} 9. Kxd1 {[%emt 0:00:06]} Nxc6 {[%emt 0:00:05]} 10. Bxc6+ {[%emt 0:01:10]} bxc6 {[%emt 0:00:52]} 11. Be3 {[%emt 0:00:05]} e5 {[%emt 0:06:58] A30: Symmetrical English: Double Fianchetto and Hedgehog.} 12. f3 {[%emt 0:03:11]} Be6 {[%emt 0:16:38]} 13. Ke1 {[%emt 0:00:23] [#]} a5 $146 {[%emt 0:12:05]} ({Predecessor:} 13... Be7 14. Kf2 Rb8 15. b3 Bf6 16. Nd2 e4 17. Rac1 exf3 18. exf3 Bd5 19. Bc5 Rb7 {1-0 (65) Kurajica,B (2510)-Farago,I (2505) Sarajevo 1983}) 14. Kf2 {[%emt 0:00:37]} Bb4 {[%emt 0:02:27]} 15. Rc1 {[%emt 0:03:55]} Kd7 {[%emt 0:00:22]} 16. Nd2 {[%emt 0:14:10]} Bxd2 {[%emt 0:08:23]} 17. Bxd2 {[%emt 0:00:19]} Rhb8 {[%emt 0:00:30]} 18. Bc3 {[%emt 0:00:35]} f6 {[%emt 0:00:05]} 19. f4 {[%emt 0:01:03]} exf4 {[%emt 0:03:14]} 20. gxf4 {[%emt 0:00:02]} Bd5 {[%emt 0:00:20]} 21. Rg1 {[%emt 0:03:08]} Rg8 {[%emt 0:02:02]} 22. Rg3 {[%emt 0:00:44]} Ke6 {[%emt 0:00:46]} 23. Rag1 {[%emt 0:02:09]} g6 {[%emt 0:03:40]} 24. Rh3 {[%emt 0:03:51]} Kf5 {[%emt 0:08:31]} 25. Rxh7 {[%emt 0:07:23]} Rh8 {[%emt 0:00:05]} 26. Re7 {[%emt 0:00:21][%cal Oe2e4]} Rxh2+ {[%emt 0:00:27]} 27. Ke1 {[%emt 0:00:21][%cal Oe2e4]} Rhh8 {[%emt 0:02:38]} ({Of course not} 27... Bxa2 28. e4+ Kxf4 29. Bd2+ Kf3 30. Rf1+ Kg2 31. Rxf6 Rh1+ 32. Ke2 Bc4+ 33. Ke3 Rh3+ 34. Kd4 Rd8+ 35. Kxc4 $11) 28. Rg7 {[%emt 0:04:54] The position is equal.} Rhg8 {[%emt 0:03:33]} 29. R1xg6 {[%emt 0:01:00]} Rxg7 {[%emt 0:00:04]} 30. Rxg7 {[%emt 0:00:06]} Bxa2 $11 {[%emt 0:00:04][%mdl 4096] Endgame KRB-KRB} 31. e3 {[%emt 0:00:48]} a4 {[%emt 0:00:50]} 32. Bd4 {[%emt 0:02:35]} a3 {[%emt 0:01:39]} 33. bxa3 {[%emt 0:00:04]} Rxa3 {[%emt 0:00:04]} 34. Ra7 {[%emt 0:00:06]} Rxa7 {[%emt 0:00:04]} 35. Bxa7 {[%emt 0:00:06]} Ke4 {[%emt 0:00:05]} 36. Bd4 {[%emt 0:00:07]} Be6 {[%emt 0:00:05]} 37. Bxf6 {[%emt 0:00:07]} Kxe3 {[%emt 0:00:04]} 38. Be7 {[%emt 0:00:07]} c5 {[%emt 0:00:03]} 39. Bxc5+ {[%emt 0:00:04]} Kxf4 {[%emt 0:00:05] An even fight not without its subleties.  Weighted Error Value: White=0.03 (flawless) /Black=0.04 (flawless)} 1/2-1/2

[Event "GCT Superbet Romania 2022"]
[Site "Bucharest"]
[Date "2022.05.09"]
[Round "5.2"]
[White "Nepomniachtchi, Ian"]
[Black "Vachier-Lagrave, Maxime"]
[Result "1/2-1/2"]
[ECO "B55"]
[WhiteElo "2773"]
[BlackElo "2750"]
[Annotator "TA"]
[PlyCount "84"]
[EventDate "2022.05.05"]
[EventType "tourn"]
[EventCountry "ROU"]
[SourceTitle "playchess.com"]
[Source "ChessBase"]
[SourceQuality "1"]
[TimeControl "40/5400+30:1800+30"]

{[%evp 9,84,0,7,0,4,14,29,0,0,-3,-6,24,0,1,9,6,0,0,6,0,0,0,3,12,16,6,0,0,0,-14,-15,-12,-12,-22,-28,-28,-32,-54,-6,-6,-8,-58,-58,-70,-68,-83,-58,-59,-38,-38,-38,-49,-49,-50,0,0,0,-52,-52,-72,-55,-61,0,0,0,0,0,-16,-16,-21,0,0,0,-47,0,0,0]} 1. e4 {[%emt 0:00:04]} c5 {[%emt 0:00:06]} 2. Nf3 {[%emt 0:00:06]} d6 {[%emt 0:00:02]} 3. d4 {[%emt 0:00:07]} cxd4 {[%emt 0:00:03]} 4. Nxd4 {[%emt 0:00:06]} Nf6 {[%emt 0:00:04]} 5. Bb5+ {[%emt 0:00:07]} Bd7 {[%emt 0:07:11]} 6. c4 {[%emt 0:00:53] B55: Sicilian: 2...d6 3 d4 cxd4 4 Nxd4 Nf6 5 f3.} Nc6 {[%emt 0:00:52]} (6... e5 $5 {[%cal Re5d4]} 7. Nb3 (7. Bxd7+ Nbxd7 8. Nb5 Nxe4 $11) 7... Nc6 $11) 7. Nc3 {[%emt 0:00:27]} g6 {[%emt 0:00:09]} 8. h3 {[%emt 0:00:10] White has an edge. now supersedes 8.0-0.} Nxd4 {[%emt 0:00:20]} 9. Bxd7+ {[%emt 0:00:11]} Qxd7 {[%emt 0:00:04]} 10. Qxd4 {[%emt 0:00:06]} Bg7 {[%emt 0:00:07]} 11. Be3 {[%emt 0:00:05]} O-O {[%emt 0:00:37][%cal Of6g4]} 12. Qd3 $1 {[%emt 0:00:22]} Qc6 {[%emt 0:03:35]} 13. Bd4 {[%emt 0:00:13] [#]} a6 $146 {[%emt 0:08:31]} ({Predecessor:} 13... Nd7 14. Nd5 Rfe8 15. Bxg7 Kxg7 16. Qd4+ {½-½ (16) Vedmediuc,S (2459)-Szabo,G (2553) Bucharest 2012}) 14. Nd5 {[%emt 0:00:41]} Nxd5 {[%emt 0:02:16]} 15. exd5 {[%emt 0:00:06]} Qd7 {[%emt 0:00:09]} 16. Bxg7 {[%emt 0:00:05]} Kxg7 {[%emt 0:00:07]} 17. O-O {[%emt 0:00:06]} b5 {[%emt 0:02:28]} 18. b4 {[%emt 0:02:05]} Qf5 {[%emt 0:09:51]} 19. Qe2 {[%emt 0:04:24]} bxc4 {[%emt 0:01:54]} 20. Qxc4 {[%emt 0:00:31]} Rfc8 {[%emt 0:00:58]} 21. Qd4+ {[%emt 0:02:51]} Qf6 {[%emt 0:02:26]} 22. Qe4 {[%emt 0:01:19]} Rc3 {[%emt 0:08:39]} 23. Rac1 {[%emt 0:00:25]} Rac8 {[%emt 0:01:09]} (23... Ra3 $1 $15 {was preferrable.}) 24. Rxc3 $11 {[%emt 0:00:05]} Qxc3 {[%emt 0:00:31]} 25. Qxe7 {[%emt 0:12:10]} ({White should try} 25. Rb1 $1 $11) 25... Qxb4 {[%emt 0:00:28][%mdl 4096] Endgame KQR-KQR} 26. Qe2 {[%emt 0:00:14] Prevents Rc2.} a5 {[%emt 0:00:50][%cal Ba6a5,Ba5a4][%mdl 32]} 27. Rd1 {[%emt 0:00:09]} a4 {[%emt 0:02:56]} 28. g3 {[%emt 0:00:42]} a3 {[%emt 0:02:40]} 29. Kg2 {[%emt 0:02:37]} Rc3 {[%emt 0:01:16]} 30. h4 {[%emt 0:02:35]} h5 {[%emt 0:01:34]} 31. Rd2 {[%emt 0:01:51]} Rc1 {[%emt 0:03:07]} (31... Qb1 $15) 32. Qd3 {[%emt 0:02:03]} Rc3 {[%emt 0:01:36]} ({Black should play} 32... Qc3 $11) 33. Qe2 $1 $15 {[%emt 0:00:05]} Qb1 {[%emt 0:00:56]} 34. Rd1 {[%emt 0:02:04]} Qf5 {[%emt 0:01:08] [#] White must now prevent ...Rc2.} 35. Rd2 {[%emt 0:02:42] Inhibits Rc2.} Rc1 {[%emt 0:04:12]} (35... Kh8 $15) 36. Qe3 $11 {[%emt 0:06:52]} Qb1 {[%emt 0:03:17]} 37. Qd4+ {[%emt 0:03:51]} Kg8 {[%emt 0:05:35]} 38. Re2 {[%emt 0:00:29] [#] White wants to mate with Re8+.} Rg1+ {[%emt 0:00:07]} 39. Kh2 $1 {[%emt 0:00:11]} ({Much weaker is} 39. Kf3 Qf5+ 40. Ke3 Rc1 $17) 39... Rh1+ {[%emt 0:00:05]} (39... Re1 $5 {[%cal Re1e2]} 40. Rd2 (40. Rxe1 $2 Qxe1 41. Qe3 Qb4 $19) 40... Qb5 $11) 40. Kg2 {[%emt 0:00:00] Threatening mate with Re8+.} Rg1+ {[%emt 0:00:00]} 41. Kh2 $1 {[%emt 0:00:07] Intending Re8+ and mate.} ({Of course not} 41. Kf3 Qf5+ 42. Ke3 Rc1 $17) 41... Rh1+ {[%emt 0:00:24]} (41... Re1 $1 $15 42. Rd2 (42. Rxe1 $2 Qxe1 43. Qe3 Qb4 $19) 42... Qb5) 42. Kg2 {[%emt 0:00:03] White threatens Re8+ and mate.} Rg1+ {[%emt 0:59:10] Weighted Error Value: White=0.05 (flawless) /Black=0.09 (flawless)} 1/2-1/2

[Event "GCT Superbet Romania 2022"]
[Site "Bucharest"]
[Date "2022.05.09"]
[Round "5.3"]
[White "Deac, Bogdan-Daniel"]
[Black "Firouzja, Alireza"]
[Result "1/2-1/2"]
[ECO "E73"]
[WhiteElo "2671"]
[BlackElo "2804"]
[Annotator "TA"]
[PlyCount "135"]
[EventDate "2022.05.05"]
[EventType "tourn"]
[EventCountry "ROU"]
[SourceTitle "playchess.com"]
[Source "ChessBase"]
[SourceQuality "1"]
[TimeControl "40/5400+30:1800+30"]

{[%evp 10,135,43,43,29,35,39,28,34,28,27,24,48,40,57,24,24,25,35,0,0,0,0,0,0,0,18,7,84,70,58,70,94,88,79,52,54,15,12,-56,-51,-106,-105,-99,-92,-128,-132,-129,-133,-127,-124,-153,-133,-106,-117,-151,-135,-156,-164,-155,-153,-158,-145,-133,-112,-185,-153,-212,-72,-66,-20,-66,-54,-40,-8,-8,8,8,8,0,0,0,0,0,0,0,0,0,0,0,0,0,0,0,0,0,0,0,0,0,0,0,0,0,0,0,0,0,0,0,0,0,0,0,8,0,0,0,8,0,8,0,8,0,8,0,8,0]} 1. d4 {[%emt 0:00:02]} Nf6 {[%emt 0:00:12]} 2. c4 {[%emt 0:00:13]} g6 {[%emt 0:00:08]} 3. Nc3 {[%emt 0:00:39]} Bg7 {[%emt 0:00:13]} 4. e4 {[%emt 0:02:53]} d6 {[%emt 0:00:08]} 5. Be2 {[%emt 0:00:42]} O-O {[%emt 0:00:22]} 6. h4 {[%emt 0:00:22][%cal Bh2h4,Bh4h5,Bh5h6][%mdl 32]} Nc6 {[%emt 0:03:34][%cal Bb8c6,Bc6e5,Be5g4][%mdl 32] E73: King's Indian: Averbakh Variation without 6...c5.} 7. d5 {[%emt 0:00:53]} Ne5 {[%emt 0:00:22]} 8. h5 {[%emt 0:00:04]} c6 {[%emt 0:01:45] White has an edge.} 9. h6 {[%emt 0:03:13]} Bh8 {[%emt 0:00:33]} 10. Nf3 {[%emt 0:00:05] [#]} Neg4 $146 {[%emt 0:08:33]} ({Predecessor:} 10... Nxf3+ 11. Bxf3 Nd7 12. Be3 c5 13. Be2 Qb6 14. Qd2 Ne5 15. f4 Ng4 16. Bg1 Bd7 {0-1 (37) Aravindh,C (2641)-Adhiban,B (2660) chess24.com INT 2021}) 11. O-O {[%emt 0:07:50]} Qb6 {[%emt 0:04:46]} 12. Qb3 {[%emt 0:14:33]} Nh5 {[%emt 0:07:32]} 13. Nh2 {[%emt 0:12:28]} Nhf6 {[%emt 0:12:56]} 14. Nf3 {[%emt 0:11:17]} Nd7 {[%emt 0:09:00]} 15. Qc2 {[%emt 0:10:13]} Nc5 {[%emt 0:01:24]} 16. Bf4 {[%emt 0:13:57]} a5 {[%emt 0:12:06]} 17. Rae1 {[%emt 0:06:14]} f5 {[%emt 0:05:58]} 18. exf5 {[%emt 0:00:39]} Rxf5 {[%emt 0:05:46]} (18... Bxf5 $11 19. Qd2 Rae8) 19. Bg5 {[%emt 0:03:21]} Qd8 {[%emt 0:12:11]} 20. Qd2 {[%emt 0:04:07]} Qf8 {[%emt 0:01:18]} 21. Bd1 {[%emt 0:01:24]} Rf7 {[%emt 0:04:30]} 22. b3 {[%emt 0:05:20] Against a4. White is more active.} Nxh6 {[%emt 0:03:36]} 23. dxc6 {[%emt 0:00:57]} (23. Bxh6 Bxc3 24. Qe3 Bg7 25. Bxg7 Qxg7 $11) 23... bxc6 {[%emt 0:00:37]} 24. Nd4 {[%emt 0:00:17]} (24. Na4 $11 Ng4 25. Nxc5 dxc5 26. Bc2) 24... Nf5 $15 {[%emt 0:01:31]} 25. Nxc6 {[%emt 0:00:44]} (25. Nxf5 $1 $15 Bxf5 26. Bf3) 25... Bb7 {[%emt 0:01:34]} 26. Bf3 {[%emt 0:00:09]} Ra6 {[%emt 0:01:18]} 27. Nxe7+ {[%emt 0:00:48]} Nxe7 {[%emt 0:00:08]} 28. Bxb7 {[%emt 0:00:22]} Bxc3 {[%emt 0:01:13]} ({Much weaker is} 28... Nxb7 $6 29. Rxe7 Rxe7 30. Bxe7 Qxe7 31. Nd5 $11) 29. Qxc3 {[%emt 0:00:08]} Nxb7 {[%emt 0:00:04]} 30. Re2 {[%emt 0:00:55] [#] Black must now prevent Qe1.} h6 {[%emt 0:00:53]} 31. Bc1 {[%emt 0:00:25]} Ra8 {[%emt 0:00:35]} 32. Bb2 {[%emt 0:00:43][%csl Gb2][%cal Rc3h8]} Kh7 {[%emt 0:00:06] Against Qh8+} 33. Rfe1 {[%emt 0:00:10][%cal Oe2e7]} Nc5 {[%emt 0:00:33]} 34. Qd2 {[%emt 0:00:48]} Nf5 {[%emt 0:00:23]} 35. Qd5 {[%emt 0:00:29]} h5 {[%emt 0:00:29]} 36. Bc3 {[%emt 0:00:29]} Nd7 {[%emt 0:01:01]} 37. Re6 {[%emt 0:00:30]} (37. Bxa5 $17 {might work better.} Nf6 38. Qd2) 37... Rc8 $19 {[%emt 0:00:32][%cal Oa5a4]} 38. Bxa5 {[%emt 0:00:34] [#]} (38. Bb2 $17) 38... Nf6 {[%emt 0:00:39]} (38... Rc5 $1 $19 {[%cal Rc5d5] has better winning chances.} 39. Qd2 Ne5) 39. Qd2 $17 {[%emt 0:00:18]} Re8 {[%emt 0:00:48]} (39... Qh6 $15 40. Qxh6+ Kxh6) 40. Bc3 {[%emt 0:00:00]} ({But not} 40. Qg5 $2 Rxe6 41. Rxe6 Ng7 $19) (40. Rxe8 $11 Nxe8 41. Bc3) 40... Rxe6 {[%emt 0:00:00]} 41. Rxe6 {[%emt 0:00:37]} Nd7 {[%emt 0:16:09]} (41... Ng7 $5 {[%cal Rg7e6]} 42. Re2 (42. Rxd6 $2 Ne4 $19) 42... Ng4 $17) 42. Qg5 {[%emt 0:06:19][%csl Ge6][%cal Rg5g6] The position is equal.} Qg8 {[%emt 0:01:00]} 43. g4 {[%emt 0:02:30]} hxg4 {[%emt 0:01:41][%cal Og4g3] Threatens to win with ...g3!} 44. Qxg4 {[%emt 0:00:15][%cal Oe6d6]} Ne5 {[%emt 0:00:35]} 45. Qh3+ {[%emt 0:07:10]} Nh6 $1 {[%emt 0:00:05] ...Nf3+ is the strong threat.} 46. Rxd6 {[%emt 0:04:15]} Qe8 {[%emt 0:06:06] Strongly threatening ...Nf3+.} 47. Qe6 {[%emt 0:08:43]} Re7 {[%emt 0:00:36]} 48. Qd5 {[%emt 0:00:15] aiming for Rd8.} Nef7 {[%emt 0:00:20] Against Rd8} 49. Rf6 {[%emt 0:01:20]} Rd7 {[%emt 0:01:44]} 50. Qe6 {[%emt 0:00:46]} Rd1+ {[%emt 0:01:20]} 51. Kg2 {[%emt 0:00:18]} Qxe6 {[%emt 0:05:03]} 52. Rxe6 {[%emt 0:00:07]} Nf5 {[%emt 0:00:02] Against Re7} 53. Re1 {[%emt 0:00:23]} Rd3 {[%emt 0:00:07]} 54. Rc1 {[%emt 0:00:36]} Ng5 {[%emt 0:00:12]} 55. Kf1 {[%emt 0:02:24]} Ne6 {[%emt 0:02:28]} 56. Be5 {[%emt 0:00:42]} Rd2 {[%emt 0:00:18]} 57. b4 {[%emt 0:01:30] Against Nc5} Rxa2 {[%emt 0:00:11]} 58. c5 {[%emt 0:00:37]} Ra4 {[%emt 0:00:30]} 59. c6 {[%emt 0:00:20]} Rxb4 {[%emt 0:00:11]} 60. c7 {[%emt 0:00:06]} Nxc7 {[%emt 0:00:10]} 61. Rxc7+ $11 {[%emt 0:00:10][%mdl 4096] Endgame KRB-KRN} Kg8 {[%emt 0:00:13]} 62. Bg3 {[%emt 0:00:20]} Ra4 {[%emt 0:00:19]} 63. Kg2 {[%emt 0:00:04]} Rb4 {[%emt 0:00:04]} 64. Ra7 {[%emt 0:00:06]} Rc4 {[%emt 0:00:11]} 65. Rb7 {[%emt 0:00:04]} Kf8 {[%emt 0:00:05]} 66. Ra7 {[%emt 0:00:21]} Kg8 {[%emt 0:00:05]} 67. Rb7 {[%emt 0:00:03]} Kf8 {[%emt 0:00:04]} 68. Ra7 {[%emt 0:00:04] Whites escaped into a draw.  Weighted Error Value: White=0.12 (very precise) /Black=0.09 (flawless)} 1/2-1/2